fUSD/lending_fUSD_20240409
["ID","MTS","AMOUNT","RATE_DAILY","PERIOD"]
[322029324,1712695877134,-291.97,0.00032,2]
[322029325,1712695877144,-250.16267514,0.00032,7]
[322029326,1712695877153,-1004.9,0.00032,2]
[322029327,1712695877163,-302.54,0.00032,2]
[322029328,1712695877175,-267.25,0.00032016,2]
[322029329,1712695877185,-300.0,0.00032034,7]
[322029330,1712695877195,-352.067773,0.00032035,2]
[322029331,1712695877204,-151.0,0.00032035,7]
[322029332,1712695877214,-151.0,0.00032035,7]
[322029333,1712695877224,-165.049842,0.00032042,7]
[322029334,1712695877234,-165.049842,0.00032042,7]
[322029335,1712695877244,-495.22095793,0.00032053,7]
[322029336,1712695877254,-341.69192811,0.00032056,7]
[322029337,1712695877264,-199.10640391,0.00032094,7]
[322029338,1712695877274,-946.04931219,0.000321,4]
[322029339,1712695877284,-547.68326135,0.000321,2]
[322029340,1712695877294,-150.0,0.000321,2]
[322029341,1712695877304,-635.19264803,0.000321,2]
[322029342,1712695877313,-609.23483492,0.000321,2]
[322029343,1712695877323,-208.89832093,0.000321,2]
[322029344,1712695877333,-437.08356138,0.000321,2]
[322029345,1712695877342,-563.52800005,0.000321,2]
[322029346,1712695877353,-234.11397932,0.000321,2]
[322029347,1712695877363,-524.24004118,0.000321,2]
[322029348,1712695877373,-887.48728951,0.000321,2]
[322029349,1712695877383,-468.36012349,0.000321,2]
[322029350,1712695877393,-384.90611455,0.000321,2]
[322029351,1712695877403,-240.38225281,0.000321,2]
[322029352,1712695877414,-316.80815624,0.000321,2]
[322029353,1712695877424,-532.70590208,0.000321,2]
[322029354,1712695877433,-146052.14812407,0.000321,2]
[322029355,1712695877443,-34919.50696979,0.000321,2]
[322029356,1712695877452,-18967.53952111,0.000321,3]
[322029357,1712695877462,-3839.13128593,0.000321,3]
[322029358,1712695877472,-337.49234785,0.000321,2]
[322029359,1712695877482,-218.6502876,0.000321,15]
[322029360,1712695877491,-214.16415903,0.000321,2]
[322029361,1712695877501,-163663.16391183,0.000321,2]
[322029362,1712695877511,-117245.23266923,0.000321,2]
[322029363,1712695877521,-1210.0,0.000321,2]
[322029364,1712695877532,-2921.69234425,0.000321,2]
[322029365,1712695877542,-1000.74199268,0.000321,2]
[322029366,1712695877552,-12120.58711322,0.000321,2]
[322029367,1712695877562,-10396.90524711,0.000321,2]
[322029368,1712695877572,-5037.99008875,0.000321,2]
[322029369,1712695877581,-2656.43528844,0.000321,2]
[322029370,1712695877591,-2384.95387934,0.000321,2]
[322029371,1712695877600,-5448.43173354,0.000321,2]
[322029372,1712695877612,-2601.9991944,0.000321,2]
[322029373,1712695877622,-133462.44655667,0.000321,2]
[322029374,1712695877632,-3155.94046803,0.000321,2]
[322029375,1712695877644,-22155.72259061,0.000321,2]
[322029376,1712695877655,-14702.82100649,0.000321,2]
[322029377,1712695877666,-1038.37133473,0.000321,2]
[322029378,1712695877677,-5799.72697921,0.000321,2]
[322029379,1712695877688,-1015.74311395,0.000321,2]
[322029380,1712695877699,-8971.86384152,0.000321,2]
[322029381,1712695877709,-1274.072496,0.000321,2]
[322029382,1712695877719,-4803.40380096,0.000321,2]
[322029383,1712695877729,-12476.96157713,0.000321,2]
[322029384,1712695877739,-1867.78941613,0.000321,2]
[322029385,1712695877749,-9045.85549162,0.000321,2]
[322029386,1712695877759,-1786.59018572,0.000321,2]
[322029387,1712695877769,-16284.89884242,0.000321,2]
[322029388,1712695877779,-7035.47485646,0.000321,2]
[322029389,1712695877790,-10413.9896396,0.000321,2]
[322029390,1712695877800,-164826.14641867,0.000321,2]
[322029391,1712695877810,-14540.47857867,0.000321,2]
[322029392,1712695877821,-6000.0,0.000321,2]
[322029393,1712695877831,-1004.78536201,0.000321,2]
[322029394,1712695877841,-10319.20364235,0.000321,2]
[322029395,1712695877855,-14231.13389313,0.000321,2]
[322029396,1712695877865,-149265.88059684,0.000321,2]
[322029397,1712695877875,-290591.31888092,0.000321,7]
[322029398,1712695877884,-1037.93390749,0.000321,2]
[322029399,1712695877894,-20671.24938126,0.000321,2]
[322029400,1712695877905,-2500.0,0.000321,2]
[322029401,1712695877963,-2315.4803506,0.000321,2]
[322029402,1712695877973,-27046.41271168,0.000321,2]
[322029403,1712695877983,-10208.86418566,0.000321,2]
[322029404,1712695877993,-406231.19378049,0.000321,2]
[322029405,1712695878003,-26830.57372183,0.000321,2]
[322029406,1712695878012,-9271.99743919,0.000321,2]
[322029407,1712695878022,-14805.21355831,0.000321,2]
[322029408,1712695878032,-21373.55361759,0.000321,2]
[322029409,1712695878040,-4898.12585204,0.000321,2]
[322029410,1712695878049,-9497.08685056,0.000321,2]
[322029411,1712695878059,-356484.51158689,0.000321,2]
[322029412,1712695878069,-1787.40261679,0.000321,2]
[322029413,1712695878079,-5036.26594769,0.000321,2]
[322029414,1712695878089,-11519.75996767,0.000321,2]
[322029415,1712695878101,-13000.0,0.000321,2]
[322029416,1712695878111,-1005.18312432,0.000321,2]
[322029417,1712695878120,-13664.78271799,0.000321,2]
[322029418,1712695878130,-1004.30915547,0.000321,2]
[322029419,1712695878140,-150.0,0.000321,3]
[322029420,1712695878150,-150.0,0.000321,2]
[322029421,1712695878163,-5000.0,0.000321,7]
[322029422,1712695878173,-5019.0,0.000321,7]
[322029423,1712695878182,-1851.31152256,0.000321,2]
[322029424,1712695878191,-18116.86882108,0.000321,5]
[322029425,1712695878199,-25007.78476709,0.000321,5]
[322029426,1712695878208,-1237.8154268,0.000321,4]
[322029427,1712695878218,-6519.14605702,0.000321,4]
[322029428,1712695878227,-150.0,0.000321,2]
[322029429,1712695878236,-150.0,0.000321,2]
[322029430,1712695878245,-200.0,0.000321,2]
[322029431,1712695878254,-4776.98421456,0.000321,7]
[322029432,1712695878263,-1912.92847979,0.000321,5]
[322029433,1712695878272,-7542.69277062,0.000321,7]
[322029434,1712695878281,-941.42134139,0.000321,5]
[322029435,1712695878293,-570.91939087,0.000321,5]
[322029436,1712695878303,-234.36279758,0.000321,5]
[322029437,1712695878312,-795.65560599,0.000321,2]
[322029438,1712695878321,-204.99445906,0.000321,5]
[322029439,1712695878330,-29610.44096978,0.000321,4]
[322029440,1712695878339,-5000.0,0.000321,20]
[322029441,1712695878348,-338.38890154,0.000321,2]
[322029442,1712695878359,-4678.03787101,0.000321,2]
[322029443,1712695878367,-221.54972098,0.000321,2]
[322029444,1712695878377,-381.19375571,0.000321,2]
[322029445,1712695878386,-1477.60152691,0.000321,2]
[322029446,1712695878395,-7164.6958243,0.000321,2]
[322029447,1712695878404,-159.35438928,0.000321,2]
[322029448,1712695878413,-175.58857537,0.000321,2]
[322029449,1712695878422,-845.17555269,0.000321,2]
[322029450,1712695878431,-185.5104217,0.000321,2]
[322029451,1712695878440,-478.72526056,0.000321,2]
[322029452,1712695878449,-643.0,0.000321,2]
[322029453,1712695878457,-943.01904514,0.000321,2]
[322029454,1712695878466,-556.99847339,0.000321,2]
[322029455,1712695878475,-169.72844271,0.000321,2]
[322029456,1712695878486,-500.0,0.000321,2]
[322029457,1712695878495,-550.0,0.000321,2]
[322029458,1712695878505,-979.98930272,0.000321,2]
[322029459,1712695878515,-250.0,0.000321,15]
[322029460,1712695878525,-226.9221,0.000321,2]
[322029461,1712695878534,-5428.70331573,0.000321,2]
[322029462,1712695878544,-594.96590975,0.000321,6]
[322029463,1712695878553,-119423.86713214,0.000321,2]
[322029464,1712695878562,-4532.59735158,0.000321,2]
[322029465,1712695878572,-1414.90970113,0.000321,2]
[322029466,1712695878582,-354.57990231,0.000321,2]
[322029467,1712695878590,-592.74135014,0.000321,2]
[322029468,1712695878599,-9254.92153718,0.000321,2]
[322029469,1712695878609,-20038.86923222,0.000321,2]
[322029470,1712695878618,-500.0,0.000321,2]
[322029471,1712695878628,-527.15797243,0.000321,5]
[322029472,1712695878637,-262.79559653,0.000321,10]
[322029473,1712695878647,-542.04038674,0.000321,5]
[322029474,1712695878656,-250.0,0.000321,14]
[322029475,1712695878666,-14363.88381797,0.000321,3]
[322029476,1712695878675,-4000.0,0.000321,3]
[322029477,1712695878684,-144864.70204114,0.000321,7]
[322029478,1712695878693,-2571.079079,0.000321,10]
[322029479,1712695878702,-35345.04751197,0.000321,10]
[322029480,1712695878711,-287458.75871832,0.000321,7]
[322029481,1712695878721,-1104369.53198523,0.000321,7]
[322029482,1712695878730,-1068.14497706,0.000321,7]
[322029483,1712695878740,-113353.2293025,0.000321,7]
[322029484,1712695878749,-4856.94168439,0.000321,2]
[322029485,1712695878759,-10239.39681182,0.000321,3]
[322029486,1712695878768,-250.0,0.000321,7]
[322029487,1712695878777,-250.0,0.000321,13]
[322029488,1712695878787,-4935.37630938,0.000321,2]
[322029489,1712695878796,-205.48115948,0.000321,2]
[322029490,1712695878806,-5007.0,0.000321,7]
[322029491,1712695878814,-435595.71755128,0.000321,7]
[322029492,1712695878824,-13559.26864291,0.000321,15]
[322029493,1712695878833,-5000.0,0.000321,7]
[322029494,1712695878842,-5000.0,0.000321,7]
[322029495,1712695878852,-5000.0,0.000321,7]
[322029496,1712695878862,-5000.0,0.000321,7]
[322029497,1712695878871,-5000.0,0.000321,7]
[322029498,1712695878881,-5000.0,0.000321,7]
[322029499,1712695878890,-5000.0,0.000321,7]
[322029500,1712695878900,-5000.0,0.000321,7]
[322029501,1712695878910,-5000.0,0.000321,7]
[322029502,1712695878919,-10769.22969896,0.000321,7]
[322029503,1712695878930,-3049.0,0.000321,10]
[322029504,1712695878940,-13002.71840506,0.000321,2]
[322029505,1712695878950,-138280.44574758,0.000321,7]
[322029506,1712695878960,-397.29356111,0.000321,7]
[322029507,1712695878970,-208.03639423,0.000321,7]
[322029508,1712695878980,-240990.0,0.000321,20]
[322029509,1712695878989,-508.67637452,0.000321,7]
[322029510,1712695879000,-250.0,0.000321,6]
[322029511,1712695879009,-250.0,0.000321,12]
[322029512,1712695879021,-1324.24963254,0.000321,2]
[322029513,1712695879030,-1292.59018207,0.000321,4]
[322029514,1712695879040,-2288.0,0.000321,7]
[322029515,1712695879049,-1005.1475955,0.000321,2]
[322029516,1712695879058,-11639.91987736,0.000321,2]
[322029517,1712695879068,-589.79413537,0.000321,7]
[322029518,1712695879079,-8606.15796268,0.000321,2]
[322029519,1712695879089,-11865.78751517,0.000321,7]
[322029520,1712695879100,-34920.36496965,0.000321,20]
[322029521,1712695879109,-28397.70054424,0.000321,7]
[322029522,1712695879118,-674.347357,0.000321,2]
[322029523,1712695879127,-85977.65367233,0.000321,7]
[322029524,1712695879136,-192.6803461,0.000321,7]
[322029525,1712695879146,-4800.0,0.000321,10]
[322029526,1712695879156,-30038.97486294,0.000321,7]
[322029527,1712695879166,-1766.28071706,0.000321,2]
[322029528,1712695879177,-58430.46265801,0.000321,14]
[322029529,1712695879187,-48452.4822549,0.000321,7]
[322029530,1712695879195,-5045.23494993,0.000321,7]
[322029531,1712695879205,-1287.89138309,0.000321,15]
[322029532,1712695879214,-15025.35395267,0.000321,2]
[322029533,1712695879224,-26334.132191,0.000321,7]
[322029534,1712695879234,-159.76941986,0.000321,2]
[322029535,1712695879244,-159.76941986,0.000321,2]
[322029536,1712695879253,-159.76941986,0.000321,2]
[322029537,1712695879262,-159.76941986,0.000321,2]
[322029538,1712695879272,-159.76941986,0.000321,2]
[322029539,1712695879284,-159.76941986,0.000321,2]
[322029540,1712695879295,-159.76941986,0.000321,2]
[322029541,1712695879305,-159.76941986,0.000321,2]
[322029542,1712695879314,-159.76941986,0.000321,2]
[322029543,1712695879324,-159.76941986,0.000321,2]
[322029544,1712695879334,-159.76941986,0.000321,2]
[322029545,1712695879344,-159.76941986,0.000321,2]
[322029546,1712695879353,-159.76941986,0.000321,2]
[322029547,1712695879362,-159.76941986,0.000321,2]
[322029548,1712695879372,-159.76941986,0.000321,2]
[322029549,1712695879382,-159.76941986,0.000321,2]
[322029550,1712695879392,-159.76941986,0.000321,2]
[322029551,1712695879402,-159.76941986,0.000321,2]
[322029552,1712695879411,-159.76941986,0.000321,2]
[322029553,1712695879421,-159.76941987,0.000321,2]
[322029554,1712695879433,-7206.0,0.000321,4]
[322029555,1712695879442,-18785.0,0.000321,4]
[322029556,1712695879453,-3620.0,0.000321,4]
[322029557,1712695879465,-151.0,0.000321,7]
[322029558,1712695879475,-243.690912,0.000321,7]
[322029559,1712695879485,-151.0,0.000321,7]
[322029560,1712695879495,-151.0,0.000321,7]
[322029561,1712695879504,-151.0,0.000321,7]
[322029562,1712695879514,-1000.0,0.000321,2]
[322029563,1712695879526,-1000.0,0.000321,2]
[322029564,1712695879535,-170.293665,0.000321,7]
[322029565,1712695879545,-1000.0,0.000321,2]
[322029566,1712695879555,-1000.0,0.000321,2]
[322029567,1712695879565,-1000.0,0.000321,2]
[322029568,1712695879575,-1000.0,0.000321,2]
[322029569,1712695879584,-1121.439481,0.000321,2]
[322029570,1712695879593,-151.0,0.000321,7]
[322029571,1712695879603,-151.0,0.000321,7]
[322029573,1712695879612,-151.0,0.000321,7]
[322029574,1712695879622,-151.0,0.000321,7]
[322029575,1712695879631,-151.0,0.000321,7]
[322029576,1712695879641,-151.0,0.000321,7]
[322029577,1712695879651,-151.0,0.000321,7]
[322029578,1712695879660,-151.0,0.000321,7]
[322029579,1712695879670,-151.0,0.000321,7]
[322029580,1712695879680,-265.780201,0.000321,7]
[322029581,1712695879689,-151.0,0.000321,7]
[322029582,1712695879698,-151.0,0.000321,7]
[322029583,1712695879708,-151.0,0.000321,7]
[322029584,1712695879718,-151.0,0.00032104,7]
[322029585,1712695879727,-232.000786,0.00032104,7]
[322029586,1712695879736,-151.0,0.00032104,7]
[322029587,1712695879746,-429.516437,0.00032104,7]
[322029588,1712695879756,-232.000786,0.00032104,7]
[322029589,1712695879765,-429.516437,0.00032104,7]
[322029590,1712695879775,-151.0,0.00032104,7]
[322029591,1712695879784,-151.312694,0.00032104,7]
[322029592,1712695879794,-833.286233,0.00032104,7]
[322029593,1712695879804,-833.286233,0.00032104,7]
[322029594,1712695879814,-215.158978,0.00032104,7]
[322029595,1712695879824,-215.158978,0.00032104,7]
[322029596,1712695879834,-172.777653,0.00032104,7]
[322029597,1712695879845,-151.0,0.00032104,7]
[322029598,1712695879855,-1914.000595,0.00032104,7]
[322029599,1712695879864,-172.777653,0.00032104,7]
[322029600,1712695879874,-1914.000595,0.00032104,7]
[322029601,1712695879883,-319.723781,0.00032104,7]
[322029602,1712695879892,-319.723781,0.00032104,7]
[322029603,1712695879902,-151.0,0.00032104,7]
[322029604,1712695879912,-185.735795,0.00032104,7]
[322029605,1712695879922,-185.735795,0.00032104,7]
[322029606,1712695879932,-22852.19,0.00032104,3]
[322029607,1712695879942,-9286.00535786,0.0003211,2]
[322029608,1712695879953,-151.0,0.0003211,7]
[322029609,1712695879962,-151.0,0.0003213,7]
[322029610,1712695879973,-154.359846,0.0003213,7]
[322029611,1712695879982,-181.523775,0.00032142,7]
[322029612,1712695879991,-151.0,0.00032142,7]
[322029613,1712695880001,-200.392861,0.00032142,7]
[322029614,1712695880010,-370.172463,0.00032142,7]
[322029615,1712695880019,-200.392861,0.00032142,7]
[322029616,1712695880029,-370.172463,0.00032142,7]
[322029617,1712695880038,-151.0,0.00032142,7]
[322029618,1712695880048,-482.484988,0.00032142,7]
[322029619,1712695880057,-171.396988,0.00032142,7]
[322029620,1712695880066,-482.484988,0.00032142,7]
[322029621,1712695880076,-171.396988,0.00032142,7]
[322029622,1712695880086,-175.461544,0.00032142,7]
[322029623,1712695880095,-175.461544,0.00032142,7]
[322029624,1712695880107,-357.142231,0.00032142,7]
[322029625,1712695880117,-357.142231,0.00032142,7]
[322029626,1712695880127,-151.0,0.00032142,7]
[322029627,1712695880137,-151.0,0.00032142,7]
[322029628,1712695880147,-153.057037,0.00032142,7]
[322029629,1712695880157,-151.0,0.00032142,7]
[322029630,1712695880168,-270.728436,0.00032142,7]
[322029631,1712695880178,-151.0,0.00032142,7]
[322029632,1712695880188,-151.0,0.00032142,7]
[322029633,1712695880197,-8639.19956891,0.00032142,2]
[322029634,1712695880207,-5000.0,0.00032142,2]
[322029635,1712695880217,-5000.0,0.00032142,2]
[322029636,1712695880228,-5000.0,0.00032142,2]
[322029637,1712695880237,-5000.0,0.00032142,2]
[322029638,1712695880247,-151.0,0.00032143,7]
[322029639,1712695880257,-151.0,0.00032143,7]
[322029640,1712695880267,-341.69192811,0.00032147,7]
[322029641,1712695880276,-200.0,0.0003217,10]
[322029642,1712695880287,-341.69192811,0.00032172,7]
[322029643,1712695880298,-351.0,0.0003223,2]
[322029644,1712695880308,-181.523775,0.0003223,7]
[322029645,1712695880317,-181.523775,0.0003223,7]
[322029646,1712695880327,-151.0,0.0003223,7]
[322029647,1712695880337,-151.0,0.0003223,7]
[322029648,1712695880346,-200.392861,0.0003223,7]
[322029649,1712695880356,-370.172463,0.0003223,7]
[322029650,1712695880365,-200.392861,0.0003223,7]
[322029651,1712695880374,-370.172463,0.0003223,7]
[322029652,1712695880383,-200.392861,0.0003223,7]
[322029653,1712695880394,-200.392861,0.0003223,7]
[322029654,1712695880404,-370.172463,0.0003223,7]
[322029655,1712695880412,-370.172463,0.0003223,7]
[322029656,1712695880423,-151.0,0.0003223,7]
[322029657,1712695880432,-151.0,0.0003223,7]
[322029658,1712695880442,-482.484988,0.0003223,7]
[322029659,1712695880451,-482.484988,0.0003223,7]
[322029660,1712695880462,-171.396988,0.0003223,7]
[322029661,1712695880471,-482.484988,0.0003223,7]
[322029662,1712695880481,-171.396988,0.0003223,7]
[322029663,1712695880491,-482.484988,0.0003223,7]
[322029664,1712695880500,-171.396988,0.0003223,7]
[322029665,1712695880510,-171.396988,0.0003223,7]
[322029666,1712695880521,-175.461544,0.0003223,7]
[322029667,1712695880531,-175.461544,0.0003223,7]
[322029668,1712695880541,-175.461544,0.0003223,7]
[322029669,1712695880551,-357.142231,0.0003223,7]
[322029670,1712695880561,-175.461544,0.0003223,7]
[322029671,1712695880571,-357.142231,0.0003223,7]
[322029672,1712695880581,-357.142231,0.0003223,7]
[322029673,1712695880590,-357.142231,0.0003223,7]
[322029674,1712695880600,-151.0,0.0003223,7]
[322029675,1712695880609,-151.0,0.0003223,7]
[322029676,1712695880619,-151.0,0.0003223,7]
[322029677,1712695880629,-151.0,0.0003223,7]
[322029678,1712695880640,-151.0,0.0003223,7]
[322029679,1712695880650,-151.0,0.0003223,7]
[322029680,1712695880659,-151.0,0.0003223,7]
[322029681,1712695880669,-151.0,0.0003223,7]
[322029682,1712695880679,-151.0,0.0003223,7]
[322029683,1712695880690,-150.48143878,0.00032257,7]
[322029684,1712695880700,-1545.451197,0.0003228,12]
[322029685,1712695880710,-300.0,0.00032284,7]
[322029686,1712695880720,-16799.45448889,0.000323,2]
[322029687,1712695880731,-2000.0,0.000323,6]
[322029688,1712695880740,-300.0,0.000323,2]
[322029689,1712695880750,-275.5,0.000323,2]
[322029690,1712695880760,-1000.0,0.000323,12]
[322029691,1712695880771,-600.0,0.000323,120]
[322029692,1712695880782,-600.0,0.000323,120]
[322029693,1712695880792,-250.16267514,0.00032313,7]
[322029694,1712695880801,-1000.0,0.0003232,12]
[322029695,1712695880811,-890.20228688,0.00032329,7]
[322029696,1712695880820,-7300.41732768,0.00032329,7]
[322029697,1712695880831,-32168.3576172,0.00032329,7]
[322029698,1712695880841,-174331.77,0.00032331,5]
[322029699,1712695880851,-1000.0,0.0003234,12]
[322029700,1712695880861,-1000.0,0.0003236,12]
[322029701,1712695880871,-300.0,0.00032362,2]
[322029702,1712695880881,-151.0,0.00032366,7]
[322029703,1712695880891,-151.0,0.00032366,7]
[322029704,1712695880900,-151.0,0.00032366,7]
[322029705,1712695880910,-151.0,0.00032366,7]
[322029706,1712695880921,-165.049842,0.00032366,7]
[322029707,1712695880930,-165.049842,0.00032366,7]
[322029708,1712695880940,-165.049842,0.00032366,7]
[322029709,1712695880951,-165.049842,0.00032366,7]
[322029710,1712695880962,-151.0,0.00032366,7]
[322029711,1712695880971,-151.0,0.00032366,7]
[322029712,1712695880980,-232.000786,0.00032366,7]
[322029714,1712695880990,-232.000786,0.00032366,7]
[322029715,1712695880999,-151.0,0.00032366,7]
[322029716,1712695881009,-151.0,0.00032366,7]
[322029717,1712695881020,-229871.63765797,0.00032366,14]
[322029718,1712695881030,-429.516437,0.00032366,7]
[322029719,1712695881040,-429.516437,0.00032366,7]
[322029720,1712695881050,-232.000786,0.00032366,7]
[322029721,1712695881066,-232.000786,0.00032366,7]
[322029722,1712695881088,-429.516437,0.00032366,7]
[322029723,1712695881098,-429.516437,0.00032366,7]
[322029724,1712695881109,-13205.1431464,0.00032366,4]
[322029725,1712695881120,-263.10144224,0.00032366,2]
[322029726,1712695881130,-438.84229818,0.00032366,4]
[322029727,1712695881140,-594.59726445,0.00032366,2]
[322029728,1712695881150,-155.0,0.00032366,2]
[322029729,1712695881160,-817.23397692,0.00032366,30]
[322029730,1712695881170,-448.53328589,0.00032366,7]
[322029731,1712695881179,-1160.81150587,0.00032366,90]
[322029732,1712695881190,-2967.23856021,0.00032366,4]
[322029733,1712695881199,-2000.0,0.00032366,4]
[322029734,1712695881208,-4121.48980349,0.00032366,4]
[322029735,1712695881219,-151.0,0.00032366,7]
[322029736,1712695881229,-151.0,0.00032366,7]
[322029737,1712695881239,-833.286233,0.00032366,7]
[322029738,1712695881248,-833.286233,0.00032366,7]
[322029739,1712695881257,-833.286233,0.00032366,7]
[322029740,1712695881267,-833.286233,0.00032366,7]
[322029741,1712695881276,-215.158978,0.00032366,7]
[322029742,1712695881286,-215.158978,0.00032366,7]
[322029743,1712695881296,-215.158978,0.00032366,7]
[322029744,1712695881305,-215.158978,0.00032366,7]
[322029745,1712695881315,-172.777653,0.00032366,7]
[322029746,1712695881324,-172.777653,0.00032366,7]
[322029747,1712695881333,-151.0,0.00032366,7]
[322029748,1712695881342,-151.0,0.00032366,7]
[322029749,1712695881351,-1914.000595,0.00032366,7]
[322029750,1712695881361,-1914.000595,0.00032366,7]
[322029751,1712695881370,-172.777653,0.00032366,7]
[322029752,1712695881379,-172.777653,0.00032366,7]
[322029753,1712695881388,-1914.000595,0.00032366,7]
[322029754,1712695881397,-1914.000595,0.00032366,7]
[322029755,1712695881405,-319.723781,0.00032366,7]
[322029756,1712695881415,-319.723781,0.00032366,7]
[322029757,1712695881424,-319.723781,0.00032366,7]
[322029758,1712695881433,-319.723781,0.00032366,7]
[322029759,1712695881442,-151.0,0.00032366,7]
[322029760,1712695881451,-185.735795,0.00032366,7]
[322029761,1712695881461,-185.735795,0.00032366,7]
[322029762,1712695881470,-185.735795,0.00032366,7]
[322029763,1712695881479,-185.735795,0.00032366,7]
[322029764,1712695881487,-151.0,0.00032366,7]
[322029765,1712695881496,-151.0,0.00032366,7]
[322029766,1712695881505,-151.0,0.00032366,7]
[322029767,1712695881515,-151.0,0.00032366,7]
[322029768,1712695881524,-218.0,0.0003237,2]
[322029769,1712695881533,-218.0,0.0003237,2]
[322029770,1712695881542,-210.0,0.0003237,2]
[322029771,1712695881552,-1001.55227042,0.0003237,2]
[322029772,1712695881561,-1000.0,0.0003237,2]
[322029773,1712695881571,-5000.0,0.0003238,2]
[322029774,1712695881581,-5000.0,0.0003238,3]
[322029775,1712695881590,-5000.0,0.0003238,4]
[322029776,1712695881600,-5000.0,0.0003238,5]
[322029777,1712695881610,-5000.0,0.0003238,6]
[322029778,1712695881619,-5000.0,0.0003238,7]
[322029779,1712695881629,-5000.0,0.0003238,8]
[322029780,1712695881638,-5000.0,0.0003238,9]
[322029781,1712695881648,-5000.0,0.0003238,10]
[322029782,1712695881658,-5000.0,0.0003238,11]
[322029783,1712695881667,-5000.0,0.0003238,12]
[322029784,1712695881677,-5000.0,0.0003238,13]
[322029785,1712695881687,-5000.0,0.0003238,14]
[322029786,1712695881696,-5000.0,0.0003238,15]
[322029787,1712695881706,-5000.0,0.0003238,16]
[322029788,1712695881715,-5000.0,0.0003238,17]
[322029789,1712695881725,-5000.0,0.0003238,18]
[322029790,1712695881734,-5000.0,0.0003238,19]
[322029791,1712695881743,-5000.0,0.0003238,20]
[322029792,1712695881752,-6895.48265853,0.0003238,21]
[322029793,1712695881761,-5000.01,0.0003238,22]
[322029794,1712695881770,-1000.0,0.0003238,12]
[322029795,1712695881779,-8141.4861347,0.00032396,7]
[322029796,1712695881788,-1000.0,0.000324,12]
[322029797,1712695881798,-341.69192823,0.00032413,7]
[322029798,1712695881807,-1000.0,0.0003242,12]
[322029799,1712695881817,-406.52370346,0.00032423,7]
[322029800,1712695881827,-152.0,0.00032426,22]
[322029801,1712695881837,-250.16267532,0.00032433,7]
[322029802,1712695881846,-1000.0,0.0003244,12]
[322029803,1712695881855,-1000.0,0.0003246,12]
[322029804,1712695881864,-1000.0,0.0003247,2]
[322029805,1712695881873,-1000.0,0.0003247,2]
[322029806,1712695881882,-810.54909759,0.0003247,2]
[322029807,1712695881891,-1000.0,0.0003248,12]
[322029808,1712695881901,-406.52370346,0.00032491,7]
[322029809,1712695881910,-150.48143878,0.00032495,7]
[322029810,1712695881919,-571.65,0.000325,7]
[322029811,1712695881928,-160.0,0.000325,20]
[322029812,1712695881938,-3000.0,0.000325,2]
[322029813,1712695881947,-200.0,0.000325,5]
[322029814,1712695881957,-1000.0,0.000325,12]
[322029815,1712695881967,-1030.0,0.00032508,5]
[322029816,1712695881976,-3000.0,0.0003251,2]
[322029817,1712695882080,-153.83304043,0.00032518,7]
[322029818,1712695882095,-3000.0,0.0003252,2]
[322029819,1712695882105,-3000.0,0.0003253,2]
[322029820,1712695882115,-300.0,0.00032534,7]
[322029821,1712695882124,-4505.079301,0.0003254,2]
[322029822,1712695882135,-683.66,0.00032548,15]
[322029823,1712695882144,-150.48143878,0.00032548,7]
[322029824,1712695882154,-182.90598691,0.00032552,2]
[322029825,1712695882164,-150.48143879,0.00032555,7]